[Event "NJSK 2026 Jeugd A"]
[Site "Helmond, Netherlands"]
[Date "2026.05.01"]
[Round "7.5"]
[White "Xu, Alex Z"]
[Black "Kazarjan, Gachatur"]
[Result "1/2-1/2"]
[TimeControl "90min/40moves + 30min + 30sec/move"]
[WhiteTitle "-"]
[BlackTitle "-"]
[WhiteFideId "40114775"]
[BlackFideId "1068750"]
[WhiteElo "1965"]
[BlackElo "2272"]

1. e4 {[%clk 01:30:59]} c5 {[%clk 01:25:20]} {[%emt 00:05:41]} 2. Nf3 {[%clk
01:31:24]} {[%emt 00:00:05]} d6 {[%clk 01:25:35]} {[%emt 00:00:14]} 3. d4
{[%clk 01:31:49]} {[%emt 00:00:05]} cxd4 {[%clk 01:25:59]} {[%emt 00:00:06]} 4.
Nxd4 {[%clk 01:32:16]} {[%emt 00:00:04]} Nf6 {[%clk 01:26:25]} {[%emt
00:00:04]} 5. Nc3 {[%clk 01:32:40]} {[%emt 00:00:05]} Nc6 {[%clk 01:26:48]}
{[%emt 00:00:08]} 6. Bg5 {[%clk 01:32:49]} {[%emt 00:00:20]} Bd7 {[%clk
01:27:07]} {[%emt 00:00:06]} 7. Qd2 {[%clk 01:32:42]} {[%emt 00:00:42]} Rc8
{[%clk 01:27:31]} {[%emt 00:00:05]} 8. O-O-O {[%clk 01:30:55]} {[%emt
00:02:18]} Nxd4 {[%clk 01:27:37]} {[%emt 00:00:24]} 9. Qxd4 {[%clk 01:31:17]}
{[%emt 00:00:08]} Qa5 {[%clk 01:28:04]} {[%emt 00:00:03]} 10. Bxf6 {[%clk
01:29:40]} {[%emt 00:02:08]} gxf6 {[%clk 01:28:21]} {[%emt 00:00:12]} 11. Kb1
{[%clk 01:28:41]} {[%emt 00:01:29]} Qc5 {[%clk 01:28:13]} {[%emt 00:00:38]} 12.
Qd2 {[%clk 01:27:24]} {[%emt 00:01:47]} Bg7 {[%clk 01:18:24]} {[%emt 00:10:18]}
13. f4 {[%clk 01:17:23]} {[%emt 00:10:32]} f5 {[%clk 01:17:05]} {[%emt
00:01:50]} 14. e5 {[%clk 01:09:57]} {[%emt 00:07:55]} Rd8 {[%clk 01:01:12]}
{[%emt 00:16:23]} 15. Qe1 {[%clk 00:49:47]} {[%emt 00:20:40]} O-O {[%clk
00:59:43]} {[%emt 00:01:59]} 16. exd6 {[%clk 00:44:42]} {[%emt 00:05:36]} Be6
{[%clk 00:57:58]} {[%emt 00:02:14]} 17. dxe7 {[%clk 00:35:30]} {[%emt
00:09:42]} Rxd1+ {[%clk 00:58:01]} {[%emt 00:00:27]} 18. Nxd1 {[%clk 00:35:25]}
{[%emt 00:00:35]} Rc8 {[%clk 00:57:59]} {[%emt 00:00:32]} 19. Qd2 {[%clk
00:34:01]} {[%emt 00:01:54]} Qxe7 {[%clk 00:56:21]} {[%emt 00:02:09]} 20. Bd3
{[%clk 00:32:53]} {[%emt 00:01:37]} Qc5 {[%clk 00:55:40]} {[%emt 00:01:10]} 21.
c3 {[%clk 00:26:15]} {[%emt 00:07:08]} Qd5 {[%clk 00:53:05]} {[%emt 00:03:06]}
22. b3 {[%clk 00:25:05]} {[%emt 00:01:40]} a5 {[%clk 00:50:22]} {[%emt
00:03:13]} 23. Qc2 {[%clk 00:21:29]} {[%emt 00:04:05]} b5 {[%clk 00:44:58]}
{[%emt 00:05:55]} 24. Re1 {[%clk 00:18:53]} {[%emt 00:03:06]} Rd8 {[%clk
00:37:26]} {[%emt 00:08:04]} 25. Be2 {[%clk 00:13:28]} {[%emt 00:05:55]} Qc5
{[%clk 00:37:22]} {[%emt 00:00:34]} 26. Nb2 {[%clk 00:10:50]} {[%emt 00:03:08]}
Rc8 {[%clk 00:34:16]} {[%emt 00:03:36]} 27. Nd3 {[%clk 00:10:18]} {[%emt
00:01:03]} Qb6 {[%clk 00:33:00]} {[%emt 00:01:46]} 28. Ne5 {[%clk 00:09:25]}
{[%emt 00:01:22]} Qf2 {[%clk 00:30:23]} {[%emt 00:03:07]} 29. Rf1 {[%clk
00:09:07]} {[%emt 00:00:48]} Qc5 {[%clk 00:28:48]} {[%emt 00:02:05]} 30. Bd3
{[%clk 00:06:53]} {[%emt 00:02:44]} Bxe5 {[%clk 00:24:22]} {[%emt 00:04:57]} 31.
fxe5 {[%clk 00:07:17]} {[%emt 00:00:05]} Qxe5 {[%clk 00:24:47]} {[%emt
00:00:06]} 32. Bxf5 {[%clk 00:04:05]} {[%emt 00:03:41]} Rxc3 {[%clk 00:24:49]}
{[%emt 00:00:28]} 33. Qe4 {[%clk 00:03:53]} {[%emt 00:00:42]} Qxe4+ {[%clk
00:20:32]} {[%emt 00:04:47]} 34. Bxe4 {[%clk 00:04:15]} {[%emt 00:00:07]} Re3
{[%clk 00:20:50]} {[%emt 00:00:12]} 35. Bc6 {[%clk 00:03:53]} {[%emt 00:00:52]}
b4 {[%clk 00:20:27]} {[%emt 00:00:54]} 36. Rf2 {[%clk 00:02:48]} {[%emt
00:01:35]} Kf8 {[%clk 00:20:12]} {[%emt 00:00:44]} 37. Kb2 {[%clk 00:01:54]}
{[%emt 00:01:24]} Ke7 {[%clk 00:20:23]} {[%emt 00:00:20]} 38. Bf3 {[%clk
00:01:47]} {[%emt 00:00:36]} Re5 {[%clk 00:17:20]} {[%emt 00:03:33]} 39. Re2
{[%clk 00:01:13]} {[%emt 00:01:04]} f6 {[%clk 00:15:46]} {[%emt 00:02:04]} 40.
Re4 {[%emt 00:01:07]} Bf5 {[%clk 00:14:08]} {[%emt 00:01:55]} 41. Rd4 {[%clk
00:28:50]} {[%emt 00:02:29]} Re1 {[%clk 00:43:07]} {[%emt 00:01:31]} 42. a3
{[%clk 00:26:56]} {[%emt 00:02:26]} bxa3+ {[%clk 00:41:11]} {[%emt 00:02:24]}
43. Kxa3 {[%clk 00:26:18]} {[%emt 00:01:08]} Be6 {[%clk 00:41:15]} {[%emt
00:00:26]} 44. Re4 {[%clk 00:24:17]} {[%emt 00:02:31]} Rb1 {[%clk 00:38:46]}
{[%emt 00:02:59]} 45. Ka2 {[%clk 00:20:26]} {[%emt 00:04:22]} Rf1 {[%clk
00:39:07]} {[%emt 00:00:09]} 46. Ra4 {[%clk 00:18:58]} {[%emt 00:01:58]} Rf2+
{[%clk 00:39:31]} {[%emt 00:00:06]} 47. Ka3 {[%clk 00:19:18]} {[%emt 00:00:10]}
Rf1 {[%clk 00:39:55]} {[%emt 00:00:05]} 48. Rxa5 {[%clk 00:19:37]} {[%emt
00:00:12]} Ra1+ {[%clk 00:40:15]} {[%emt 00:00:10]} 49. Kb4 {[%clk 00:20:04]}
{[%emt 00:00:03]} Rxa5 {[%clk 00:40:42]} {[%emt 00:00:03]} 50. Kxa5 {[%clk
00:20:29]} {[%emt 00:00:05]} Bxb3 {[%clk 00:41:08]} {[%emt 00:00:03]} 51. Kb4
{[%clk 00:20:39]} {[%emt 00:00:21]} Bf7 {[%clk 00:41:31]} {[%emt 00:00:06]} 52.
Kc5 {[%clk 00:20:55]} {[%emt 00:00:14]} Bg6 {[%clk 00:41:54]} {[%emt 00:00:07]}
53. Bd5 {[%clk 00:20:53]} {[%emt 00:00:32]} Kf8 {[%clk 00:41:50]} {[%emt
00:00:34]} 54. g4 {[%clk 00:20:54]} {[%emt 00:00:29]} Kg7 {[%clk 00:42:04]}
{[%emt 00:00:16]} 55. Be6 {[%clk 00:21:14]} {[%emt 00:00:10]} h5 {[%clk
00:40:19]} {[%emt 00:02:16]} 56. gxh5 {[%clk 00:20:37]} {[%emt 00:01:07]} Bxh5
{[%clk 00:40:47]} {[%emt 00:00:02]} 57. h4 {[%clk 00:20:46]} {[%emt 00:00:20]}
Kg6 {[%clk 00:41:10]} {[%emt 00:00:08]} 58. Kd4 {[%clk 00:21:05]} {[%emt
00:00:11]} Bd1 {[%clk 00:40:28]} {[%emt 00:01:12]} 59. Ke4 {[%clk 00:21:12]}
{[%emt 00:00:22]} Bc2+ {[%clk 00:40:50]} {[%emt 00:00:08]} 60. Kf4 {[%clk
00:21:39]} {[%emt 00:00:04]} Kh5 {[%clk 00:41:16]} {[%emt 00:00:04]} 61. Bb3
{[%clk 00:21:42]} {[%emt 00:00:27]} Bg6 {[%clk 00:41:23]} {[%emt 00:00:22]} 62.
Bf7 {[%clk 00:21:55]} {[%emt 00:00:18]} Bxf7 {[%clk 00:41:08]} {[%emt
00:00:45]} 63. Kf5 {[%clk 00:22:20]} {[%emt 00:00:05]} Kxh4 {[%clk 00:41:34]}
{[%emt 00:00:04]} 64. Kxf6 {[%clk 00:22:43]} {[%emt 00:00:08]} 1/2-1/2

[Event "NJSK 2026 Jeugd A"]
[Site "Helmond, Netherlands"]
[Date "2026.05.01"]
[Round "7.6"]
[White "Madularea, David"]
[Black "Kshirsagar, Pranav"]
[Result "1-0"]
[TimeControl "90min/40moves + 30min + 30sec/move"]
[WhiteTitle "-"]
[BlackTitle "-"]
[WhiteFideId "1070215"]
[BlackFideId "1084011"]
[WhiteElo "2261"]
[BlackElo "2148"]

1. b3 {[%clk 01:30:56]} {[%emt 00:00:04]} Nf6 {[%clk 01:30:54]} {[%emt
00:00:06]} 2. Bb2 {[%clk 01:31:21]} {[%emt 00:00:05]} d5 {[%clk 01:31:13]}
{[%emt 00:00:10]} 3. e3 {[%clk 01:31:44]} {[%emt 00:00:08]} g6 {[%clk
01:27:43]} {[%emt 00:04:00]} 4. Be2 {[%clk 01:29:27]} {[%emt 00:02:46]} Bg7
{[%clk 01:27:59]} {[%emt 00:00:15]} 5. d3 {[%clk 01:29:01]} {[%emt 00:00:55]}
b6 {[%clk 01:24:23]} {[%emt 00:04:06]} 6. f4 {[%clk 01:25:23]} {[%emt
00:04:08]} O-O {[%clk 01:22:54]} {[%emt 00:01:59]} 7. g4 {[%clk 01:21:04]}
{[%emt 00:04:49]} e5 {[%clk 01:09:00]} {[%emt 00:14:24]} 8. g5 {[%clk
01:10:13]} {[%emt 00:11:21]} Ne8 {[%clk 01:09:23]} {[%emt 00:00:07]} 9. fxe5
{[%clk 01:07:11]} {[%emt 00:03:31]} Qxg5 {[%clk 01:04:10]} {[%emt 00:05:43]} 10.
Nf3 {[%clk 01:05:19]} {[%emt 00:02:22]} Qh5 {[%clk 01:03:18]} {[%emt 00:01:22]}
11. h4 {[%clk 00:58:03]} {[%emt 00:07:46]} Bg4 {[%clk 00:53:19]} {[%emt
00:10:28]} 12. d4 {[%clk 00:55:25]} {[%emt 00:03:09]} f6 {[%clk 00:48:16]}
{[%emt 00:05:33]} 13. Ba3 {[%clk 00:53:17]} {[%emt 00:02:39]} c5 {[%clk
00:11:20]} {[%emt 00:37:26]} 14. dxc5 {[%clk 00:49:20]} {[%emt 00:04:27]} fxe5
{[%clk 00:11:41]} {[%emt 00:00:09]} 15. cxb6 {[%clk 00:46:13]} {[%emt
00:03:36]} Rxf3 {[%clk 00:04:21]} {[%emt 00:07:52]} 16. Qxd5+ {[%clk 00:44:38]}
{[%emt 00:02:05]} Kh8 {[%clk 00:04:50]} 17. Nd2 {[%clk 00:41:20]} {[%emt
00:03:47]} Rxe3 {[%clk 00:03:54]} {[%emt 00:01:26]} 18. O-O-O {[%clk 00:41:22]}
{[%emt 00:00:28]} Bxe2 {[%clk 00:01:44]} {[%emt 00:02:40]} 19. b7 {[%clk
00:41:06]} {[%emt 00:00:46]} Bxd1 {[%clk 00:01:27]} {[%emt 00:00:47]} 20.
bxa8=Q {[%clk 00:41:15]} {[%emt 00:00:22]} Qf5 {[%clk 00:00:53]} {[%emt
00:01:04]} 21. Rxd1 {[%clk 00:41:25]} {[%emt 00:00:19]} 1-0

[Event "NJSK 2026 Jeugd A"]
[Site "Helmond, Netherlands"]
[Date "2026.05.01"]
[Round "7.7"]
[White "Ten Kate, Gustav"]
[Black "Ponomarev, Ivan"]
[Result "1-0"]
[TimeControl "90min/40moves + 30min + 30sec/move"]
[WhiteTitle "-"]
[BlackTitle "-"]
[WhiteFideId "1095781"]
[BlackFideId "34411003"]
[WhiteElo "1972"]
[BlackElo "1983"]

1. e4 {[%clk 01:30:48]} {[%emt 00:00:12]} c5 {[%clk 01:30:59]} {[%emt
00:00:02]} 2. Nf3 {[%clk 01:31:12]} {[%emt 00:00:05]} d6 {[%clk 01:31:26]}
{[%emt 00:00:04]} 3. d4 {[%clk 01:31:38]} {[%emt 00:00:04]} cxd4 {[%clk
01:31:54]} {[%emt 00:00:02]} 4. Nxd4 {[%clk 01:32:01]} {[%emt 00:00:07]} Nf6
{[%clk 01:32:21]} {[%emt 00:00:03]} 5. Nc3 {[%clk 01:32:20]} {[%emt 00:00:10]}
g6 {[%clk 01:32:47]} {[%emt 00:00:04]} 6. Be3 {[%clk 01:32:43]} {[%emt
00:00:06]} Nc6 {[%clk 01:33:11]} {[%emt 00:00:07]} 7. f3 {[%clk 01:33:09]}
{[%emt 00:00:04]} h5 {[%clk 01:33:36]} {[%emt 00:00:06]} 8. Bc4 {[%clk
01:33:34]} {[%emt 00:00:04]} Bd7 {[%clk 01:33:59]} {[%emt 00:00:07]} 9. Bb3
{[%clk 01:33:59]} {[%emt 00:00:05]} Bg7 {[%clk 01:31:39]} {[%emt 00:02:50]} 10.
Qd3 {[%clk 01:33:58]} {[%emt 00:00:32]} Ne5 {[%clk 01:23:43]} {[%emt 00:08:26]}
11. Qe2 {[%clk 01:34:21]} {[%emt 00:00:06]} Rc8 {[%clk 01:12:22]} {[%emt
00:11:52]} 12. O-O {[%clk 01:29:21]} {[%emt 00:05:28]} a6 {[%clk 00:58:58]}
{[%emt 00:13:56]} 13. h3 {[%clk 01:16:52]} {[%emt 00:12:58]} b5 {[%clk
00:41:55]} {[%emt 00:17:33]} 14. Nd5 {[%clk 01:04:06]} {[%emt 00:13:15]} Nxd5
{[%clk 00:28:12]} {[%emt 00:14:15]} 15. Bxd5 {[%clk 01:03:48]} {[%emt
00:00:47]} e6 {[%clk 00:28:07]} {[%emt 00:00:35]} 16. Bb3 {[%clk 01:03:21]}
{[%emt 00:00:56]} Nc4 {[%clk 00:28:04]} {[%emt 00:00:34]} 17. Bxc4 {[%clk
01:03:35]} {[%emt 00:00:16]} Rxc4 {[%clk 00:28:12]} {[%emt 00:00:22]} 18. c3
{[%clk 01:01:26]} {[%emt 00:02:39]} O-O {[%clk 00:28:22]} {[%emt 00:00:20]} 19.
Qd2 {[%clk 00:55:00]} {[%emt 00:06:56]} Bc8 {[%clk 00:17:28]} {[%emt 00:11:24]}
20. Rad1 {[%clk 00:36:45]} {[%emt 00:18:47]} d5 {[%clk 00:16:30]} {[%emt
00:01:28]} 21. Nc2 {[%clk 00:35:02]} {[%emt 00:02:13]} Bb7 {[%clk 00:16:26]}
{[%emt 00:00:35]} 22. Bh6 {[%clk 00:33:58]} {[%emt 00:01:33]} Qb6+ {[%clk
00:14:13]} {[%emt 00:02:43]} 23. Be3 {[%clk 00:32:56]} {[%emt 00:01:32]} Qc7
{[%clk 00:12:16]} {[%emt 00:02:27]} 24. exd5 {[%clk 00:32:42]} {[%emt
00:00:45]} Bxd5 {[%clk 00:12:21]} {[%emt 00:00:25]} 25. Bd4 {[%clk 00:30:21]}
{[%emt 00:02:50]} Rd8 {[%clk 00:08:28]} {[%emt 00:04:23]} 26. Bxg7 {[%clk
00:30:39]} {[%emt 00:00:13]} Kxg7 {[%clk 00:08:56]} {[%emt 00:00:02]} 27. Qf2
{[%clk 00:29:45]} {[%emt 00:01:23]} Rc6 {[%clk 00:08:25]} {[%emt 00:01:02]} 28.
a3 {[%clk 00:09:03]} {[%emt 00:21:12]} Rcd6 {[%clk 00:08:16]} {[%emt 00:00:38]}
29. Rfe1 {[%clk 00:08:21]} {[%emt 00:01:12]} Bc4 {[%clk 00:06:42]} {[%emt
00:02:04]} 30. Ne3 {[%clk 00:07:51]} {[%emt 00:01:00]} Bb3 {[%clk 00:06:14]}
{[%emt 00:00:59]} 31. Rxd6 {[%clk 00:08:01]} {[%emt 00:00:20]} Qxd6 {[%clk
00:06:37]} {[%emt 00:00:07]} 32. Re2 {[%clk 00:07:54]} {[%emt 00:00:36]} a5
{[%clk 00:05:52]} {[%emt 00:01:16]} 33. Nf1 {[%clk 00:06:38]} {[%emt 00:01:46]}
Qc6 {[%clk 00:02:32]} {[%emt 00:03:49]} 34. Rd2 {[%clk 00:06:24]} {[%emt
00:00:44]} Rxd2 {[%clk 00:02:34]} {[%emt 00:00:27]} 35. Nxd2 {[%clk 00:06:48]}
{[%emt 00:00:07]} Bd5 {[%clk 00:02:40]} {[%emt 00:00:23]} 36. Qd4+ {[%clk
00:05:39]} {[%emt 00:01:40]} Kf8 {[%clk 00:02:54]} {[%emt 00:00:16]} 37. b3
{[%clk 00:05:22]} {[%emt 00:00:47]} Qc7 {[%clk 00:02:21]} {[%emt 00:01:03]} 38.
c4 {[%clk 00:05:19]} {[%emt 00:00:33]} bxc4 {[%clk 00:02:49]} {[%emt 00:00:02]}
39. bxc4 {[%clk 00:05:47]} {[%emt 00:00:01]} Bb7 {[%clk 00:02:46]} {[%emt
00:00:32]} 40. h4 {[%clk 00:03:25]} {[%emt 00:02:53]} Ke7 {[%clk 00:01:41]}
{[%emt 00:01:34]} 41. c5 {[%clk 00:28:12]} {[%emt 00:05:44]} Bd5 {[%clk
00:30:13]} {[%emt 00:01:58]} 42. Nf1 {[%clk 00:19:22]} {[%emt 00:09:19]} Qb7
{[%clk 00:25:59]} {[%emt 00:04:46]} 43. Nd2 {[%clk 00:13:24]} {[%emt 00:06:27]}
Qc6 {[%clk 00:20:21]} {[%emt 00:06:08]} 44. Kf2 {[%clk 00:09:31]} {[%emt
00:04:24]} Qc7 {[%clk 00:17:54]} {[%emt 00:02:56]} 45. Nf1 {[%clk 00:08:53]}
{[%emt 00:01:07]} Qb7 {[%clk 00:17:10]} {[%emt 00:01:15]} 46. Ne3 {[%clk
00:08:35]} {[%emt 00:00:48]} Qc6 {[%clk 00:14:09]} {[%emt 00:03:30]} 47. Qc3
{[%clk 00:07:49]} {[%emt 00:01:17]} a4 {[%clk 00:11:44]} {[%emt 00:02:55]} 48.
Qa5 {[%clk 00:07:17]} {[%emt 00:01:02]} Bb3 {[%clk 00:10:24]} {[%emt 00:01:51]}
49. Qa7+ {[%clk 00:07:11]} {[%emt 00:00:35]} Qd7 {[%clk 00:09:19]} {[%emt
00:01:35]} 50. Qa5 {[%clk 00:07:21]} {[%emt 00:00:20]} Qc6 {[%clk 00:06:23]}
{[%emt 00:03:26]} 51. Qc3 {[%clk 00:07:23]} {[%emt 00:00:27]} Kd7 {[%clk
00:06:04]} {[%emt 00:00:50]} 52. Qe5 {[%clk 00:05:12]} {[%emt 00:02:40]} Qa6
{[%clk 00:05:06]} {[%emt 00:01:29]} 53. Qd4+ {[%clk 00:05:03]} {[%emt
00:00:40]} Ke7 {[%clk 00:05:23]} {[%emt 00:00:13]} 54. g4 {[%clk 00:04:36]}
{[%emt 00:00:56]} Qc6 {[%clk 00:03:53]} {[%emt 00:02:00]} 55. gxh5 {[%clk
00:04:25]} {[%emt 00:00:41]} gxh5 {[%clk 00:04:21]} {[%emt 00:00:02]} 56. Qe5
{[%clk 00:04:36]} {[%emt 00:00:19]} Qd7 {[%clk 00:04:14]} {[%emt 00:00:37]} 57.
Nf5+ {[%clk 00:04:53]} {[%emt 00:00:13]} Kd8 {[%clk 00:04:33]} {[%emt
00:00:11]} 58. Nd6 {[%clk 00:03:58]} {[%emt 00:01:25]} Qa7 {[%clk 00:03:38]}
{[%emt 00:01:25]} 59. Qxh5 {[%clk 00:04:05]} {[%emt 00:00:23]} Qa6 {[%clk
00:03:26]} {[%emt 00:00:41]} 60. Qxf7 {[%clk 00:03:34]} {[%emt 00:01:01]} Qd3
{[%clk 00:03:30]} {[%emt 00:00:26]} 61. Qe8+ {[%clk 00:03:44]} {[%emt
00:00:21]} Kc7 {[%clk 00:03:59]} 62. Qc8# {[%clk 00:03:36]} {[%emt 00:00:06]}
1-0

[Event "NJSK 2026 Jeugd A"]
[Site "Helmond, Netherlands"]
[Date "2026.05.01"]
[Round "7.8"]
[White "Garay, Enzo"]
[Black "Heus, Daan"]
[Result "1/2-1/2"]
[TimeControl "90min/40moves + 30min + 30sec/move"]
[WhiteTitle "-"]
[BlackTitle "-"]
[WhiteFideId "40104125"]
[BlackFideId "40103757"]
[WhiteElo "2098"]
[BlackElo "2049"]

1. d3 {[%clk 01:29:30]} {[%emt 00:01:29]} d5 {[%clk 01:29:09]} {[%emt
00:01:51]} 2. Nf3 {[%clk 01:29:09]} {[%emt 00:00:52]} Nf6 {[%clk 01:29:03]}
{[%emt 00:00:35]} 3. g3 {[%clk 01:28:57]} {[%emt 00:00:41]} Bf5 {[%clk
01:27:34]} {[%emt 00:01:59]} 4. Bg2 {[%clk 01:28:44]} {[%emt 00:00:44]} e6
{[%clk 01:27:43]} {[%emt 00:00:21]} 5. Nh4 {[%clk 01:27:37]} {[%emt 00:01:37]}
Bg6 {[%clk 01:26:54]} {[%emt 00:01:19]} 6. Nxg6 {[%clk 01:24:40]} {[%emt
00:03:27]} hxg6 {[%clk 01:27:18]} {[%emt 00:00:06]} 7. O-O {[%clk 01:24:29]}
{[%emt 00:00:40]} Be7 {[%clk 01:24:13]} {[%emt 00:03:35]} 8. c4 {[%clk
01:24:13]} {[%emt 00:00:47]} c6 {[%clk 01:23:40]} {[%emt 00:01:04]} 9. Nc3
{[%clk 01:21:55]} {[%emt 00:02:49]} O-O {[%clk 01:20:34]} {[%emt 00:03:34]} 10.
Qb3 {[%clk 01:15:10]} {[%emt 00:07:16]} Qc8 {[%clk 01:16:10]} {[%emt 00:04:54]}
11. d4 {[%clk 01:09:37]} {[%emt 00:06:02]} Nbd7 {[%clk 01:11:13]} {[%emt
00:05:28]} 12. Rd1 {[%clk 01:07:25]} {[%emt 00:02:41]} a5 {[%clk 01:08:36]}
{[%emt 00:03:08]} 13. cxd5 {[%clk 01:03:35]} {[%emt 00:04:20]} exd5 {[%clk
01:07:24]} {[%emt 00:01:42]} 14. Bg5 {[%clk 01:01:38]} {[%emt 00:02:27]} b5
{[%clk 00:57:53]} {[%emt 00:10:01]} 15. Rac1 {[%clk 00:53:34]} {[%emt
00:08:33]} a4 {[%clk 00:50:32]} {[%emt 00:07:52]} 16. Qc2 {[%clk 00:53:35]}
{[%emt 00:00:29]} Qa6 {[%clk 00:48:21]} {[%emt 00:02:41]} 17. e4 {[%clk
00:40:33]} {[%emt 00:13:31]} dxe4 {[%clk 00:39:10]} {[%emt 00:09:42]} 18. Nxe4
{[%clk 00:40:34]} {[%emt 00:00:29]} Rac8 {[%clk 00:37:28]} {[%emt 00:02:12]} 19.
Nxf6+ {[%clk 00:34:03]} {[%emt 00:07:00]} gxf6 {[%clk 00:37:07]} {[%emt
00:00:51]} 20. Bh6 {[%clk 00:32:00]} {[%emt 00:02:34]} Rfd8 {[%clk 00:35:55]}
{[%emt 00:01:42]} 21. Qe4 {[%clk 00:31:29]} {[%emt 00:01:01]} Bf8 {[%clk
00:24:53]} {[%emt 00:11:34]} 22. Bxf8 {[%clk 00:31:13]} {[%emt 00:00:47]} Nxf8
{[%clk 00:23:36]} {[%emt 00:01:46]} 23. Rxc6 {[%clk 00:31:24]} {[%emt
00:00:19]} Rxc6 {[%clk 00:23:13]} {[%emt 00:00:52]} 24. Qxc6 {[%clk 00:31:50]}
{[%emt 00:00:04]} Rd6 {[%clk 00:21:33]} {[%emt 00:02:11]} 25. Qxa6 {[%clk
00:31:27]} {[%emt 00:00:54]} Rxa6 {[%clk 00:22:00]} {[%emt 00:00:01]} 26. d5
{[%clk 00:31:49]} {[%emt 00:00:08]} Nd7 {[%clk 00:20:53]} {[%emt 00:01:37]} 27.
f4 {[%clk 00:30:11]} {[%emt 00:02:08]} Kf8 {[%clk 00:20:33]} {[%emt 00:00:51]}
28. Rc1 {[%clk 00:30:24]} {[%emt 00:00:16]} Ke7 {[%clk 00:19:23]} {[%emt
00:01:40]} 29. Kf2 {[%clk 00:28:30]} {[%emt 00:02:24]} f5 {[%clk 00:19:13]}
{[%emt 00:00:41]} 30. Rc6 {[%clk 00:26:10]} {[%emt 00:02:50]} a3 {[%clk
00:17:30]} {[%emt 00:02:13]} 31. b3 {[%clk 00:24:14]} {[%emt 00:02:26]} Rxc6
{[%clk 00:17:11]} {[%emt 00:00:49]} 32. dxc6 {[%clk 00:24:37]} {[%emt
00:00:06]} Nc5 {[%clk 00:17:37]} {[%emt 00:00:04]} 33. Ke3 {[%clk 00:20:44]}
{[%emt 00:04:24]} Nxb3 {[%clk 00:17:44]} {[%emt 00:00:23]} 34. Bd5 {[%clk
00:21:01]} {[%emt 00:00:13]} Na5 {[%clk 00:14:38]} {[%emt 00:03:36]} 35. Kd4
{[%clk 00:20:36]} {[%emt 00:00:54]} b4 {[%clk 00:13:35]} {[%emt 00:01:33]} 36.
Kd3 {[%clk 00:15:53]} {[%emt 00:05:12]} b3 {[%clk 00:11:04]} {[%emt 00:03:03]}
37. Kc3 {[%clk 00:16:17]} {[%emt 00:00:05]} bxa2 {[%clk 00:08:44]} {[%emt
00:02:50]} 38. Bxa2 {[%emt 00:00:42]} 1/2-1/2